fUSD/lending_fUSD_20251017
["ID","MTS","AMOUNT","RATE_DAILY","PERIOD"]
[391631095,1760709131063,-1247.05,0.0003041,17]
[391631096,1760709131074,-1306.87,0.0003041,17]
[391631097,1760709131084,-2452.62,0.0003041,17]
[391631098,1760709131093,-500.0,0.0003041,17]
[391631099,1760709131103,-530.71,0.0003041,17]
[391631100,1760709131114,-642.79,0.0003041,17]
[391631101,1760709131124,-1026.4,0.0003041,17]
[391631102,1760709131134,-500.0,0.0003041,17]
[391631103,1760709131145,-3204.71,0.0003041,17]
[391631104,1760709131155,-522.5,0.0003041,17]
[391631105,1760709131164,-910.91,0.0003041,17]
[391631106,1760709131174,-1081.82,0.0003041,30]
[391631107,1760709131184,-5381.98,0.0003041,2]
[391631108,1760709131194,-500.0,0.0003041,14]
[391631109,1760709131203,-1649.56,0.0003041,17]
[391631110,1760709131213,-507.36,0.0003041,17]
[391631111,1760709131223,-1028.69,0.0003041,17]
[391631112,1760709131232,-2897.84,0.0003041,17]
[391631113,1760709131242,-1506.26,0.0003041,17]
[391631114,1760709131254,-500.0,0.0003041,17]
[391631115,1760709131264,-1864.44,0.0003041,14]
[391631116,1760709131274,-1456.13,0.0003041,17]
[391631117,1760709131285,-1557.69,0.0003041,17]
[391631118,1760709131295,-2742.55,0.0003041,17]
[391631119,1760709131305,-2074.75,0.0003041,17]
[391631120,1760709131315,-504.38,0.0003041,17]
[391631121,1760709131324,-500.0,0.0003041,17]
[391631122,1760709131334,-1384.14,0.0003041,17]
[391631123,1760709131344,-2196.07,0.0003041,17]
[391631124,1760709131356,-559.51,0.0003041,17]
[391631125,1760709131366,-475.454056,0.0003041,17]
[391631126,1760709131375,-3718.78,0.0003041,17]
[391631127,1760709131386,-3147.15,0.0003041,17]
[391631128,1760709131395,-4200.71,0.0003041,17]
[391631129,1760709131404,-1582.41,0.0003041,17]
[391631130,1760709131413,-1494.76,0.0003041,17]
[391631131,1760709131423,-1298.58,0.0003041,17]
[391631132,1760709131432,-6323.72,0.0003041,17]
[391631133,1760709131442,-922.69,0.0003041,17]
[391631134,1760709131451,-209.92,0.0003041,17]
[391631135,1760709131461,-499.98,0.00030411,30]
[391631136,1760709131471,-150.0,0.00030413,120]
[391631137,1760709131481,-150.0,0.00030447,120]
[391631138,1760709131491,-1100.0,0.00030524,7]
[391631139,1760709131500,-150.0,0.00030524,30]
[391631140,1760709131512,-2229.0,0.00030545,2]
[391631141,1760709131523,-1000.0,0.00030547,120]
[391631142,1760709131532,-693.27,0.00030579,15]
[391631143,1760709131541,-693.27,0.00030579,15]
[391631144,1760709131550,-150.0,0.00030596,120]
[391631145,1760709131559,-1000.0,0.000306,2]
[391631146,1760709131569,-2220.07332795,0.00030633,4]
[391631147,1760709131578,-150.0,0.00030658,120]
[391631148,1760709131587,-1160.36,0.00030684,17]
[391631149,1760709131597,-585.15,0.00030684,17]
[391631150,1760709131611,-1000.0,0.00030684,120]
[391631151,1760709131621,-592.79,0.00030684,17]
[391631152,1760709131630,-1160.24,0.00030684,17]
[391631153,1760709131640,-824.37,0.00030684,2]
[391631154,1760709131651,-1730.63,0.00030684,17]
[391631155,1760709131661,-671.89,0.00030684,6]
[391631156,1760709131672,-1711.57,0.00030684,17]
[391631157,1760709131682,-549.57,0.00030684,17]
[391631158,1760709131694,-3442.59,0.00030684,17]
[391631159,1760709131704,-606.95,0.00030684,17]
[391631160,1760709131718,-780.1,0.00030684,17]
[391631161,1760709131730,-770.05,0.00030684,17]
[391631162,1760709131741,-214.99131021,0.00030684,17]
[391631163,1760709131751,-1701.03,0.00030684,17]
[391631164,1760709131763,-1200.12,0.00030684,17]
[391631165,1760709131773,-1288.92,0.00030684,17]
[391631166,1760709131783,-1817.2,0.00030684,17]
[391631167,1760709131794,-500.0,0.00030684,17]
[391631168,1760709131804,-760.86,0.00030684,17]
[391631169,1760709131813,-1098.2,0.00030684,17]
[391631170,1760709131823,-511.22,0.00030684,17]
[391631171,1760709131832,-706.0,0.00030684,17]
[391631172,1760709131843,-3252.66,0.00030684,17]
[391631173,1760709131853,-2857.65,0.00030684,17]
[391631174,1760709131863,-1046.4,0.00030684,17]
[391631175,1760709131874,-668.62,0.00030684,17]
[391631176,1760709131883,-3315.73,0.00030684,17]
[391631177,1760709131893,-2028.03,0.00030684,17]
[391631178,1760709131903,-1249.99,0.00030684,17]
[391631179,1760709131914,-666.89,0.00030684,17]
[391631180,1760709131923,-567.07,0.00030684,17]
[391631181,1760709131933,-624.28,0.00030684,17]
[391631182,1760709131942,-644.5,0.00030684,17]
[391631183,1760709131952,-738.71,0.00030684,17]
[391631184,1760709131962,-875.04,0.00030684,17]
[391631185,1760709131971,-2590.26,0.00030684,17]
[391631186,1760709131981,-1145.85,0.00030684,17]
[391631187,1760709131991,-589.63,0.00030684,17]
[391631188,1760709132000,-840.86,0.00030684,17]
[391631189,1760709132012,-599.72,0.00030684,17]
[391631190,1760709132021,-2359.88,0.00030684,17]
[391631191,1760709132032,-2899.42,0.00030684,17]
[391631192,1760709132041,-926.78,0.00030684,17]
[391631193,1760709132052,-970.74,0.00030684,17]
[391631194,1760709132063,-1604.59,0.00030684,17]
[391631195,1760709132073,-343.16409659,0.00030684,17]
[391631196,1760709132083,-693.35,0.00030684,2]
[391631197,1760709132093,-620.21,0.00030684,17]
[391631198,1760709132103,-693.02,0.00030684,17]
[391631199,1760709132112,-1354.15,0.00030684,17]
[391631200,1760709132122,-3285.62,0.00030684,17]
[391631201,1760709132132,-751.82,0.00030684,17]
[391631202,1760709132141,-1494.42,0.00030684,17]
[391631203,1760709132151,-633.38,0.00030684,17]
[391631204,1760709132161,-996.02,0.00030684,17]
[391631205,1760709132170,-534.95,0.00030684,17]
[391631206,1760709132180,-712.19,0.00030684,17]
[391631207,1760709132190,-755.48,0.00030684,17]
[391631208,1760709132199,-652.89,0.00030684,17]
[391631209,1760709132209,-2532.97,0.00030684,17]
[391631210,1760709132219,-1140.2,0.00030684,17]
[391631211,1760709132228,-2976.2,0.00030684,17]
[391631212,1760709132237,-630.41,0.00030684,17]
[391631213,1760709132247,-1119.53,0.00030684,17]
[391631214,1760709132261,-1387.94,0.00030684,17]
[391631215,1760709132270,-666.66,0.00030684,17]
[391631216,1760709132280,-566.55,0.00030684,17]
[391631217,1760709132290,-706.74,0.00030684,17]
[391631218,1760709132300,-1306.87,0.00030684,17]
[391631219,1760709132311,-1247.05,0.00030684,17]
[391631220,1760709132322,-2452.62,0.00030684,17]
[391631221,1760709132332,-190.34031939,0.00030684,17]
[391631222,1760709132343,-530.71,0.00030684,17]
[391631223,1760709132354,-642.79,0.00030684,17]
[391631224,1760709132365,-1026.4,0.00030684,17]
[391631225,1760709132376,-201.93736586,0.00030684,17]
[391631226,1760709132387,-3204.71,0.00030684,17]
[391631227,1760709132397,-522.5,0.00030684,17]
[391631228,1760709132407,-910.91,0.00030684,17]
[391631229,1760709132417,-1081.82,0.00030684,30]
[391631230,1760709132427,-5381.98,0.00030684,2]
[391631231,1760709132438,-1649.56,0.00030684,17]
[391631232,1760709132448,-449.73,0.00030684,14]
[391631233,1760709132458,-507.36,0.00030684,17]
[391631234,1760709132469,-1028.69,0.00030684,17]
[391631235,1760709132479,-2897.84,0.00030684,17]
[391631236,1760709132489,-1506.26,0.00030684,17]
[391631237,1760709132499,-500.0,0.00030684,17]
[391631238,1760709132511,-1864.44,0.00030684,14]
[391631239,1760709132522,-1456.13,0.00030684,17]
[391631240,1760709132532,-1557.69,0.00030684,17]
[391631241,1760709132542,-2742.55,0.00030684,17]
[391631242,1760709132552,-2074.75,0.00030684,17]
[391631243,1760709132563,-504.38,0.00030684,17]
[391631244,1760709132573,-500.0,0.00030684,17]
[391631245,1760709132583,-1384.14,0.00030684,17]
[391631246,1760709132593,-2196.07,0.00030684,17]
[391631247,1760709132604,-559.51,0.00030684,17]
[391631248,1760709132618,-3718.78,0.00030684,17]
[391631249,1760709132628,-3147.15,0.00030684,17]
[391631250,1760709132639,-4200.71,0.00030684,17]
[391631251,1760709132648,-1582.41,0.00030684,17]
[391631252,1760709132659,-1494.76,0.00030684,17]
[391631253,1760709132670,-1298.58,0.00030684,17]
[391631254,1760709132681,-6323.72,0.00030684,17]
[391631255,1760709132693,-922.69,0.00030684,17]
[391631256,1760709132704,-209.92,0.00030684,18]
[391631257,1760709132718,-1000.0,0.00030685,30]
[391631258,1760709132728,-83111.01,0.00030685,30]
[391631259,1760709132739,-366.10077811,0.00030685,2]
[391631260,1760709132750,-3000.0,0.000307,2]
[391631261,1760709132764,-958.0,0.000307,5]
[391631262,1760709132774,-150.0,0.00030726,120]
[391631263,1760709132785,-150.0,0.00030737,30]
[391631264,1760709132795,-1013.80639936,0.00030737,30]
[391631265,1760709132805,-150.0,0.00030737,30]
[391631266,1760709132815,-974.12197541,0.00030737,30]
[391631267,1760709132826,-150.0,0.00030737,30]
[391631268,1760709132837,-1438.38882785,0.00030737,30]
[391631269,1760709132847,-150.0,0.00030768,120]
[391631270,1760709132857,-1199.37,0.0003079,2]
[391631271,1760709132867,-1199.37,0.0003079,2]
[391631272,1760709132877,-1300.0,0.00030798,7]
[391631273,1760709132887,-10317.08418524,0.000308,17]
[391631274,1760709132897,-1184.46,0.000308,120]
[391631275,1760709132908,-250.0,0.000308,30]
[391631276,1760709132918,-300.0,0.000308,3]
[391631277,1760709132928,-1000.0,0.00030821,120]
[391631278,1760709132938,-2565.66203875,0.0003084,2]
[391631279,1760709132948,-693.27,0.00030853,15]
[391631280,1760709132958,-693.27,0.00030853,15]
[391631281,1760709132968,-2229.0,0.00030853,2]
[391631282,1760709132979,-836.67861893,0.00030853,2]
[391631283,1760709132989,-300.0,0.0003087,2]
[391631284,1760709132999,-300.71039717,0.0003087,2]
[391631285,1760709133012,-400.0,0.0003087,2]
[391631286,1760709133022,-400.0,0.0003087,2]
[391631287,1760709133032,-501.35353141,0.0003087,2]
[391631288,1760709133042,-1000.0,0.00030878,120]
[391631289,1760709133051,-4000.0,0.00030878,2]
[391631290,1760709133061,-218.16600176,0.00030888,120]
[391631291,1760709133072,-218.35773947,0.00030888,120]
[391631292,1760709133082,-172410.4997425,0.00030888,60]
[391631293,1760709133092,-151.0,0.0003089,7]
[391631294,1760709133103,-163.15,0.00030899,4]
[391631295,1760709133114,-5637.01042963,0.00030921,2]
[391631296,1760709133124,-326.27104919,0.00030925,2]
[391631297,1760709133135,-2220.07,0.00030942,4]
[391631298,1760709133145,-150.0,0.00030956,120]
[391631299,1760709133156,-1160.47026194,0.00030958,17]
[391631300,1760709133167,-585.23521699,0.00030958,17]
[391631301,1760709133178,-1000.0,0.00030958,120]
[391631302,1760709133189,-592.9192463,0.00030958,17]
[391631303,1760709133199,-1160.36470872,0.00030958,17]
[391631304,1760709133210,-824.42030834,0.00030958,2]
[391631305,1760709133221,-1730.85,0.00030958,17]
[391631306,1760709133231,-671.96316343,0.00030958,6]
[391631307,1760709133242,-1711.58858709,0.00030958,17]
[391631308,1760709133252,-549.63213637,0.00030958,17]
[391631309,1760709133266,-3442.81277862,0.00030958,17]
[391631310,1760709133276,-607.05393446,0.00030958,17]
[391631311,1760709133287,-780.10488053,0.00030958,17]
[391631312,1760709133297,-770.26126867,0.00030958,17]
[391631313,1760709133307,-1701.07182896,0.00030958,17]
[391631314,1760709133318,-1200.28996913,0.00030958,17]
[391631315,1760709133329,-1289.02567344,0.00030958,17]
[391631316,1760709133340,-1817.43754979,0.00030958,17]
[391631317,1760709133350,-491.12,0.00030958,17]
[391631318,1760709133361,-760.92,0.00030958,17]
[391631319,1760709133372,-1098.30245973,0.00030958,17]
[391631320,1760709133382,-511.22127571,0.00030958,17]
[391631321,1760709133394,-706.16809547,0.00030958,17]
[391631322,1760709133405,-3252.67902488,0.00030958,17]
[391631323,1760709133416,-2857.68857832,0.00030958,17]
[391631324,1760709133426,-1046.45740022,0.00030958,17]
[391631325,1760709133436,-668.64783805,0.00030958,17]
[391631326,1760709133447,-3315.73805947,0.00030958,17]
[391631327,1760709133457,-2028.13012544,0.00030958,17]
[391631328,1760709133468,-1250.04508842,0.00030958,17]
[391631329,1760709133479,-667.00412058,0.00030958,17]
[391631330,1760709133488,-567.13480091,0.00030958,17]
[391631331,1760709133499,-624.4001382,0.00030958,17]
[391631332,1760709133513,-644.73255329,0.00030958,17]
[391631333,1760709133524,-738.91238347,0.00030958,17]
[391631334,1760709133533,-875.11663458,0.00030958,17]
[391631335,1760709133544,-2590.3127503,0.00030958,17]
[391631336,1760709133555,-1145.97529015,0.00030958,17]
[391631337,1760709133566,-589.85774635,0.00030958,17]
[391631338,1760709133576,-840.88128224,0.00030958,17]
[391631339,1760709133586,-599.90442754,0.00030958,17]
[391631340,1760709133597,-2360.01664028,0.00030958,17]
[391631341,1760709133610,-2899.58450204,0.00030958,17]
[391631342,1760709133621,-926.8509922,0.00030958,17]
[391631343,1760709133632,-970.7480204,0.00030958,17]
[391631344,1760709133643,-1604.6885662,0.00030958,17]
[391631345,1760709133655,-693.42768227,0.00030958,2]
[391631346,1760709133667,-620.33575629,0.00030958,17]
[391631347,1760709133678,-693.20153591,0.00030958,17]
[391631348,1760709133691,-1354.26687858,0.00030958,17]
[391631349,1760709133702,-3285.84495239,0.00030958,17]
[391631350,1760709133712,-751.97762802,0.00030958,17]
[391631351,1760709133723,-1494.48216417,0.00030958,17]
[391631352,1760709133733,-633.45068712,0.00030958,17]
[391631353,1760709133743,-996.1381318,0.00030958,17]
[391631354,1760709133753,-535.01827721,0.00030958,17]
[391631355,1760709133766,-712.33793937,0.00030958,17]
[391631356,1760709133777,-755.66371206,0.00030958,17]
[391631357,1760709133787,-653.08019914,0.00030958,17]
[391631358,1760709133798,-2533.03161432,0.00030958,17]
[391631359,1760709133809,-1140.36388893,0.00030958,17]
[391631360,1760709133819,-2976.30752889,0.00030958,17]
[391631361,1760709133829,-630.46896138,0.00030958,17]
[391631362,1760709133839,-1119.58764139,0.00030958,17]
[391631363,1760709133849,-1388.12824165,0.00030958,17]
[391631364,1760709133860,-666.66818409,0.00030958,17]
[391631365,1760709133870,-566.67737731,0.00030958,17]
[391631366,1760709133880,-706.88969645,0.00030958,17]
[391631367,1760709133891,-1307.10855082,0.00030958,17]
[391631368,1760709133902,-1247.05688749,0.00030958,17]
[391631369,1760709133912,-2452.67862917,0.00030958,17]
[391631370,1760709133922,-530.89803115,0.00030958,17]
[391631371,1760709133932,-642.79176288,0.00030958,17]
[391631372,1760709133943,-1026.52129277,0.00030958,17]
[391631373,1760709133953,-3204.75278996,0.00030958,17]
[391631374,1760709133964,-522.68985845,0.00030958,17]
[391631375,1760709133975,-910.97546043,0.00030958,17]
[391631376,1760709133986,-1082.01911209,0.00030958,30]
[391631377,1760709133997,-5382.11292495,0.00030958,2]
[391631378,1760709134012,-1649.59594402,0.00030958,17]
[391631379,1760709134023,-507.58401805,0.00030958,17]
[391631380,1760709134034,-1028.72460569,0.00030958,17]
[391631381,1760709134045,-2897.9799249,0.00030958,17]
[391631382,1760709134056,-1506.47237776,0.00030958,17]
[391631383,1760709134066,-490.43682982,0.00030958,17]
[391631384,1760709134076,-1864.54199459,0.00030958,14]
[391631385,1760709134086,-1456.17912691,0.00030958,17]
[391631386,1760709134096,-1557.82536417,0.00030958,17]
[391631387,1760709134107,-2742.71702586,0.00030958,17]
[391631388,1760709134117,-2074.83912995,0.00030958,17]
[391631389,1760709134128,-504.58539446,0.00030958,17]
[391631390,1760709134139,-451.55217114,0.00030958,17]
[391631391,1760709134149,-1384.17158704,0.00030958,17]
[391631392,1760709134159,-2196.29086257,0.00030958,17]
[391631393,1760709134170,-559.61503207,0.00030958,17]
[391631394,1760709134181,-3718.90837715,0.00030958,17]
[391631395,1760709134192,-3147.27177428,0.00030958,17]
[391631396,1760709134204,-4200.84484401,0.00030958,17]
[391631397,1760709134214,-1582.63989158,0.00030958,17]
[391631398,1760709134224,-1494.92965948,0.00030958,17]
[391631399,1760709134234,-1298.69920532,0.00030958,17]
[391631400,1760709134245,-6323.92429706,0.00030958,17]
[391631401,1760709134259,-922.69913201,0.00030958,17]
[391631402,1760709134269,-209.92,0.00030958,19]
[391631403,1760709134279,-1000.0,0.00030966,30]
[391631404,1760709134290,-300.0,0.0003097,2]
[391631405,1760709134300,-400.0,0.0003097,2]
[391631406,1760709134311,-357.71693691,0.0003097,2]
[391631407,1760709134321,-335.12329762,0.00031,5]
[391631408,1760709134332,-10000.0,0.00031,2]
[391631409,1760709134343,-153.43,0.00031,5]
[391631410,1760709134354,-192.89274405,0.00031,120]
[391631411,1760709134364,-200.0,0.00031,120]
[391631412,1760709134375,-300.0,0.00031,2]
[391631413,1760709134386,-318.0,0.00031,2]
[391631414,1760709134396,-185.0,0.00031,120]
[391631415,1760709134407,-152.0,0.00031,120]
[391631416,1760709134417,-2020.55256766,0.00031,30]
[391631417,1760709134428,-3145.88508617,0.00031,20]
[391631418,1760709134438,-2784.74,0.00031,2]
[391631419,1760709134449,-2780.06,0.00031,30]
[391631420,1760709134459,-24566.88,0.00031,2]
[391631421,1760709134470,-1913.20537727,0.00031,2]
[391631422,1760709134480,-209.479651,0.00031018,30]
[391631423,1760709134491,-151.0,0.00031018,30]
[391631424,1760709134501,-151.0,0.00031018,30]
[391631425,1760709134515,-151.0,0.00031018,30]
[391631426,1760709134525,-434430.10856114,0.00031018,7]
[391631427,1760709135046,-500.0,0.00029041,17]
[391631428,1760709135056,-18.2428074,0.00031018,7]
[391631429,1760709135213,-500.0,0.00024657,2]
[391631430,1760709135224,-750.022604,0.000248,7]
[391631431,1760709135234,-500.0,0.00024931,2]
[391631432,1760709135244,-494.18714288,0.00025205,2]
[391631433,1760709135255,-750.022604,0.00025205,7]
[391631434,1760709135267,-500.0,0.00029315,17]
[391631435,1760709135277,-272.1674052,0.00029589,17]
[391631436,1760709135287,-2389.12,0.0003041,17]
[391631437,1760709135297,-2389.12,0.00030684,17]
[391631438,1760709135307,-2389.14266993,0.00030958,17]
[391631439,1760709135317,-1092337.99460281,0.00031018,7]
[391631440,1760709135329,-4210.64233423,0.00031018,7]
[391631441,1760709135341,-253201.35855239,0.00031018,7]
[391631442,1760709135354,-279.3450855,0.00031018,7]
[391631443,1760709135720,-1892.97471985,0.00014897,2]
[391631444,1760709135733,-607.02528015,0.00014897,2]
[391631445,1760709135743,-176.41333544,0.00019696,2]
[391631446,1760709135753,-500.0,0.00024657,2]
[391631447,1760709135769,-750.022604,0.000248,7]
[391631448,1760709135779,-750.022604,0.000248,7]
[391631449,1760709135790,-330.05960119,0.00024931,2]
[391631450,1760709135802,-169.94039881,0.00024931,2]
[391631451,1760709135813,-750.022604,0.00025205,7]
[391631452,1760709135823,-500.0,0.00025205,2]
[391631453,1760709135833,-500.0,0.00025479,2]
[391631454,1760709135843,-500.0,0.00025753,2]
[391631455,1760709135854,-750.022604,0.00026027,7]
[391631456,1760709135863,-17.8925746,0.00026027,7]
[391631457,1760709135896,-410.05024867,0.00026027,7]
[391631458,1760709135909,-322.07978073,0.00026027,7]
[391631459,1760709135918,-147.25991677,0.00026027,2]
[391631460,1760709135930,-284.77500134,0.00026027,2]
[391631478,1760709483469,895.36,0.0002619,120]
[391631484,1760709629437,-192.32120989,0.00014791,2]
[391631485,1760709629459,-192.32120989,0.00014808,2]
[391631486,1760709629482,-733.34310769,0.00014855,2]
[391631487,1760709629503,-500.0,0.00014873,2]
[391631488,1760709629524,-500.0,0.00014873,2]
[391631489,1760709629545,-300.0,0.00014889,2]
[391631490,1760709629568,-1200.0,0.0001489,2]
[391631491,1760709629590,-249.0,0.0001489,2]
[391631492,1760709629612,-300.0,0.0001489,2]
[391631493,1760709629636,-1200.0,0.0001489,2]
[391631494,1760709629658,-150.0,0.0001489,2]
[391631495,1760709629681,-151.0,0.00014891,2]
[391631496,1760709629704,-151.0,0.00014891,2]
[391631497,1760709629727,-151.0,0.00014891,2]
[391631498,1760709629752,-151.0,0.00014891,2]
[391631499,1760709629779,-151.0,0.00014891,2]
[391631500,1760709629803,-151.0,0.00014891,2]
[391631501,1760709629830,-151.0,0.00014891,2]
[391631502,1760709629854,-151.0,0.00014891,2]
[391631503,1760709629877,-151.0,0.00014891,2]
[391631504,1760709629902,-151.0,0.00014891,2]
[391631505,1760709629924,-151.0,0.00014891,2]
[391631506,1760709629947,-151.0,0.00014891,2]
[391631507,1760709629971,-151.0,0.00014891,2]
[391631508,1760709629994,-151.0,0.00014891,2]
[391631509,1760709630016,-151.0,0.00014891,2]
[391631510,1760709630038,-151.0,0.00014891,2]
[391631511,1760709630060,-151.0,0.00014891,2]
[391631512,1760709630082,-151.0,0.00014891,2]
[391631513,1760709630105,-151.0,0.00014891,2]
[391631514,1760709630127,-151.0,0.00014891,2]
[391631515,1760709630152,-151.0,0.00014891,2]
[391631516,1760709630175,-151.0,0.00014891,2]
[391631517,1760709630197,-151.0,0.00014891,2]
[391631518,1760709630220,-151.0,0.00014891,2]
[391631519,1760709630247,-151.0,0.00014891,2]
[391631520,1760709630270,-151.0,0.00014891,2]
[391631521,1760709630292,-151.0,0.00014891,2]
[391631522,1760709630314,-151.0,0.00014891,2]
[391631523,1760709630336,-151.0,0.00014891,2]
[391631524,1760709630358,-151.0,0.00014891,2]
[391631525,1760709630381,-151.0,0.00014891,2]
[391631526,1760709630405,-151.0,0.00014891,2]
[391631527,1760709630428,-151.0,0.00014891,2]
[391631528,1760709630449,-151.0,0.00014891,2]
[391631529,1760709630471,-151.0,0.00014891,2]
[391631530,1760709630493,-197.15620594,0.00014891,2]
[391631531,1760709630516,-151.0,0.00014891,2]
[391631532,1760709630539,-500.0,0.00014896,3]
[391631533,1760709630561,-5000.0,0.00014897,2]
[391631534,1760709630582,-1000.0,0.00014897,2]
[391631535,1760709630604,-31349.85826659,0.000149,2]
[391631537,1760709911245,218.31991417,0.00025408,120]
[391631539,1760709936687,165.0,8.126e-05,2]
[391631540,1760709936923,155.0,8.126e-05,2]
[391631541,1760709937469,155.0,8.126e-05,2]
[391631542,1760709937696,155.0,8.126e-05,2]
[391631543,1760709937938,155.0,8.126e-05,2]
[391631544,1760709938176,155.0,8.126e-05,2]
[391631545,1760709938423,155.0,8.126e-05,2]
[391631546,1760709938679,155.0,8.126e-05,2]
[391631547,1760709938923,155.0,8.126e-05,2]
[391631548,1760709939173,155.0,8.126e-05,2]
[391631549,1760709939409,155.0,8.126e-05,2]
[391631550,1760709939648,155.0,8.126e-05,2]
[391631551,1760709939912,155.0,8.126e-05,2]
[391631552,1760709941155,155.0,8.126e-05,2]
[391631553,1760709941204,155.0,8.126e-05,2]
[391631554,1760709941450,155.0,8.126e-05,2]
[391631555,1760709942149,155.0,8.126e-05,2]
[391631556,1760709942494,155.0,8.126e-05,2]
[391631557,1760709942754,155.0,8.126e-05,2]
[391631558,1760709943007,155.0,8.126e-05,2]
[391631559,1760709943255,155.0,8.126e-05,2]
[391631560,1760709943492,155.0,8.126e-05,2]
[391631561,1760709943723,155.0,8.126e-05,2]
[391631562,1760709943956,155.0,8.126e-05,2]
[391631563,1760709944177,155.0,8.126e-05,2]
[391631579,1760710231691,-286.6042727,0.0001489,2]
[391631580,1760710231704,-913.3957273,0.0001489,2]
[391631581,1760710231714,-150.0,0.0001489,2]
[391631582,1760710231724,-300.0,0.0001489,2]
[391631584,1760710231734,-1200.0,0.0001489,2]
[391631585,1760710231743,-500.0,0.0001489,3]
[391631586,1760710231752,-196.21535203,0.00014891,2]
[391631587,1760710231762,-151.0,0.00014891,2]
[391631588,1760710231839,-151.0,0.00014891,2]
[391631589,1760710231850,-151.0,0.00014891,2]
[391631590,1760710231859,-151.0,0.00014891,2]
[391631591,1760710231872,-286.56340228,0.00014891,2]
[391631592,1760710231881,-322.76049362,0.00014891,2]
[391631593,1760710231890,-500.0,0.00014891,2]
[391631594,1760710231903,-500.0,0.00014891,2]
[391631595,1760710231922,-500.0,0.00014891,2]
[391631596,1760710231932,-500.0,0.00014891,2]
[391631597,1760710231944,-151.0,0.00014891,2]
[391631598,1760710231954,-151.0,0.00014891,2]
[391631599,1760710231963,-151.0,0.00014891,2]
[391631600,1760710231972,-151.0,0.00014891,2]
[391631601,1760710231983,-200.0,0.00014891,2]
[391631602,1760710231992,-151.0,0.00014891,2]
[391631603,1760710232001,-151.0,0.00014891,2]
[391631605,1760710232014,-151.0,0.00014891,2]
[391631607,1760710232023,-1.9185584,0.00014891,2]
[391631611,1760710232046,-236.28573802,0.00014891,2]
[391631613,1760710232055,-500.0,0.00014893,3]
[391631614,1760710232065,-500.0,0.00014893,3]
[391631616,1760710232073,-196.21535203,0.00014897,2]
[391631618,1760710232088,-217.2422267,0.00014897,2]
[391631619,1760710232100,-7135.43090771,0.00014897,2]
[391631620,1760710232113,-405.95789884,0.00014897,2]
[391631621,1760710232128,-3384.49219345,0.00014897,2]
[391631622,1760710232138,-1984.1183211,0.00014897,2]
[391631623,1760710232148,-152.48510594,0.000149,2]
[391631624,1760710232159,-300.0,0.00016298,2]
[391631625,1760710232169,-500.0,0.00016379,3]
[391631626,1760710232178,-230.23240811,0.00016379,2]
[391631627,1760710232187,-195.0,0.0001638,2]
[391631628,1760710232197,-500.0,0.0001638,3]
[391631629,1760710232205,-195.0,0.0001638,2]
[391631630,1760710232214,-300.0,0.0001638,2]
[391631631,1760710232225,-300.0,0.0001638,2]
[391631632,1760710232237,-2516.6719714,0.00016853,2]
[391631633,1760710232250,-8409.2090286,0.00016853,2]
[391631634,1760710232260,-1984.1183211,0.00016859,2]
[391631635,1760710232270,-183.5548721,0.000177,2]
[391631636,1760710232279,-1917.5013427,0.00017903,2]
[391631637,1760710232288,-501.63734862,0.0001795,2]
[391631638,1760710232298,-10925.881,0.00018809,2]
[391631639,1760710232307,-1984.1183211,0.00018821,2]
[391631640,1760710232316,-155.23,0.00019472,2]
[391631641,1760710232325,-568.54,0.00020647,2]
[391631642,1760710232335,-217.2422267,0.00020764,2]